fUSD/lending_fUSD_20240216
["ID","MTS","AMOUNT","RATE_DAILY","PERIOD"]
[314232986,1708107033708,-1495.80034109,0.00035799,2]
[314232987,1708107033718,-706.31,0.00036449,2]
[314232988,1708107033728,-297.02025933,0.00036562,12]
[314232989,1708107033737,-2063.17506801,0.00036571,14]
[314232990,1708107033746,-1538.91104782,0.00036571,14]
[314232991,1708107033756,-1614.54401563,0.00036571,14]
[314232992,1708107033765,-2628.74944994,0.00036667,2]
[314232993,1708107033774,-178.58251082,0.00036836,2]
[314232994,1708107033783,-2065.43,0.00037075,2]
[314232995,1708107033793,-662.99462925,0.000375,5]
[314232996,1708107033802,-763.40002822,0.00037559,8]
[314232997,1708107033811,-4058.92545241,0.0003759,2]
[314232998,1708107033821,-180.0,0.00037671,2]
[314232999,1708107033830,-218.40453946,0.00037689,2]
[314233000,1708107033839,-21981.26563037,0.00037699,2]
[314233001,1708107033851,-15261.79245012,0.00037699,2]
[314233002,1708107033883,-737.28332008,0.00037699,2]
[314233003,1708107033895,-5442.18539446,0.00037699,2]
[314233021,1708107034235,-2838.372358,0.00037699,2]
[314233022,1708107034247,-1127.729,0.00037699,2]
[314233023,1708107034259,-910.99582887,0.00037699,2]
[314233024,1708107034271,-29379.48395304,0.00037888,2]
[314233044,1708107037996,-1067.87229116,0.00037888,2]
[314233163,1708107040030,-5982.95161491,0.00037888,2]
[314233164,1708107040040,-7965.8213457,0.000379,2]
[314233165,1708107040185,-435.22999987,0.000379,2]
[314233166,1708107040197,-778.0021,0.000379,2]
[314233167,1708107040209,-409.09519837,0.000379,2]
[314233168,1708107040967,-200.26125164,0.00037699,5]
[314233169,1708107040978,-129180.19851106,0.000379,2]
[314233170,1708107040988,-597.9016424,0.00038146,2]
[314233171,1708107040997,-2628.74944994,0.00038246,2]
[314233172,1708107041008,-2065.43,0.00038352,2]
[314233173,1708107041019,-274.86,0.00038356,15]
[314233175,1708107041029,-1495.80034109,0.000384,2]
[314233177,1708107041039,-160.0,0.00038654,2]
[314233178,1708107041050,-706.31,0.00038713,2]
[314233179,1708107041060,-2705.0,0.00038994,120]
[314233180,1708107041070,-177.38,0.00039248,2]
[314233181,1708107041079,-512.86320442,0.00039248,11]
[314233182,1708107041089,-2065.43,0.0003963,2]
[314233183,1708107041099,-177.38,0.00039796,2]
[314233184,1708107041108,-2628.74944994,0.00039825,2]
[314233185,1708107041120,-214.70050744,0.0003989,2]
[314233186,1708107041129,-2063.681032,0.00039891,2]
[314233187,1708107041142,-318.328976,0.00039891,2]
[314233188,1708107041154,-27754.9999999,0.00039891,2]
[314233189,1708107041168,-1241.01269705,0.00039891,2]
[314233203,1708107042489,-300.0,0.00038,30]
[314233204,1708107042499,-3392.35337584,0.00039891,2]
[314233205,1708107042597,-5014.3093,0.00039891,2]
[314233206,1708107042650,-451.53976504,0.00039891,2]
[314233207,1708107042661,-16731.5332784,0.00039891,2]
[314233208,1708107042670,-69384.1735773,0.0003998,5]
[314233209,1708107042680,-44649.5,0.0004,7]
[314233210,1708107042690,-2500.0,0.0004,3]
[314233211,1708107042699,-3000.0,0.0004,2]
[314233212,1708107042708,-3341.6308,0.0004,7]
[314233213,1708107042718,-178.58251082,0.00040148,2]
[314233214,1708107042727,-457.22201429,0.00040148,14]
[314233215,1708107042736,-152.82353987,0.00040148,7]
[314233216,1708107042745,-589.48668213,0.00040148,2]
[314233217,1708107042754,-1458.63157937,0.00040148,2]
[314233218,1708107042763,-225.07533108,0.00040148,2]
[314233219,1708107042772,-522.86211054,0.00040148,2]
[314233220,1708107042782,-240.52747998,0.00040148,2]
[314233221,1708107042791,-1908.0,0.0004019,2]
[314233222,1708107042800,-546.0,0.0004019,2]
[314233223,1708107042810,-52053.73304956,0.00040238,5]
[314233224,1708107042822,-4377.61438528,0.00040238,5]
[314233245,1708107045452,-2638.20054226,0.0003,2]
[314233262,1708107045618,-1693.1377518,0.0003,2]
[314233263,1708107045630,-4274.4918608,0.0003,2]
[314233269,1708107063247,150.0,0.00016712,2]
[314233270,1708107063267,25.74,0.00016712,2]
[314233272,1708107170515,-2000.0,0.00029747,2]
[314233273,1708107170537,-385.55466859,0.00029897,3]
[314233274,1708107170560,-850.73469273,0.00029897,3]
[314233275,1708107170580,-224.04406869,0.00029899,2]
[314233276,1708107170600,-1000.0,0.00029999,2]
[314233277,1708107170619,-150.0,0.00029999,2]
[314233278,1708107170639,-12549.66656999,0.0003,2]
[314233279,1708107199033,-289.15562755,0.000295,3]
[314233280,1708107199062,-626.8019089,0.00029746,2]
[314233281,1708107199090,-3212.44504515,0.000299,2]
[314233282,1708107199115,-372.96152434,0.000299,2]
[314233283,1708107199139,-850.73469273,0.00029998,3]
[314233284,1708107199167,-414.60283298,0.00029999,2]
[314233285,1708107199190,-159418.29389224,0.0003,2]
[314233286,1708107199217,-1176.20171541,0.0003,4]
[314233287,1708107199240,-845.45947899,0.0003,4]
[314233288,1708107263252,299.5889,0.00029899,2]
[314233289,1708107377781,161.478,0.000299,2]
[314233290,1708107419301,33297.35818414,0.0002799,2]
[314233291,1708107720754,450.0,0.00025,3]
[314233292,1708107721885,500.0,0.00027,3]
[314233293,1708107723002,550.0,0.00029,3]
[314233294,1708107796848,890.15,0.00029807,2]
[314233300,1708108173200,-155.4986,0.00030229,2]
[314233301,1708108173222,-244.23334296,0.00030325,2]
[314233313,1708108231714,-500.0,0.00030323,4]
[314233314,1708108231733,-5516.61360832,0.00030323,4]
[314233340,1708108232215,-4514.49444298,0.00030323,4]
[314233342,1708108232224,-1143.0216601,0.00030324,3]
[314233344,1708108232233,-627.7804357,0.00030324,4]
[314233346,1708108232243,-312.81460923,0.00030325,2]
[314233347,1708108232252,-5438.0,0.00030327,2]
[314233350,1708108232262,-362.1991353,0.000309,2]
[314233352,1708108232272,-600.0,0.00031,3]
[314233353,1708108232281,-1000.0,0.00031104,2]
[314233354,1708108232292,-500.0,0.00031107,2]
[314233355,1708108232301,-200.0,0.00031137,2]
[314233356,1708108232311,-1337.24,0.00031141,2]
[314233357,1708108232320,-500.0,0.00031158,2]
[314233358,1708108232330,-150.0,0.00031264,2]
[314233359,1708108232339,-150.0,0.00031264,3]
[314233360,1708108232349,-500.0,0.00031265,2]
[314233361,1708108232358,-1908.4,0.00031312,2]
[314233362,1708108232368,-2218.5,0.00031312,2]
[314233363,1708108232377,-2000.0,0.00031315,2]
[314233364,1708108232386,-3235.83,0.00031315,2]
[314233365,1708108232395,-9080.27,0.00031315,2]
[314233366,1708108232407,-999.99,0.00031315,2]
[314233367,1708108232416,-37591.78,0.0003132,2]
[314233368,1708108232425,-2705.0,0.00031331,2]
[314233369,1708108232434,-499.99,0.0003138,2]
[314233370,1708108232444,-362.19913522,0.00031388,2]
[314233371,1708108232453,-1467.5,0.00031395,2]
[314233372,1708108232462,-250.0,0.00031431,2]
[314233373,1708108232472,-174.51,0.00031472,2]
[314233374,1708108232481,-2045.5,0.00031496,2]
[314233375,1708108232490,-3949.18,0.00031511,2]
[314233376,1708108232499,-200.0,0.00031566,2]
[314233377,1708108232509,-175.72,0.00031578,2]
[314233378,1708108232518,-250.0,0.00031603,2]
[314233379,1708108232528,-706.96333017,0.00031662,2]
[314233380,1708108232537,-1834.27,0.00031663,2]
[314233381,1708108232547,-1852.42,0.00031663,2]
[314233382,1708108232556,-1067.54,0.00031708,2]
[314233383,1708108232566,-179.12,0.00031726,2]
[314233384,1708108232574,-176.17,0.00031753,10]
[314233385,1708108232584,-854.06,0.00031757,10]
[314233386,1708108232595,-3345.62,0.00031759,2]
[314233387,1708108232605,-922.27,0.00031767,2]
[314233388,1708108232615,-362.19913522,0.00031876,2]
[314233389,1708108232625,-150.99,0.00032057,2]
[314233390,1708108232635,-890.15,0.00032071,2]
[314233391,1708108232648,-1906.17,0.00032256,2]
[314233392,1708108232657,-362.19913522,0.00032364,2]
[314233393,1708108232668,-208.58,0.00032398,3]
[314233394,1708108232678,-854.06,0.00032398,10]
[314233395,1708108232687,-2141.6300301,0.00032398,2]
[314233396,1708108232697,-29837.94,0.00032408,2]
[314233397,1708108232719,-955.56951938,0.00032498,2]
[314233398,1708108232728,-16131.0,0.000325,3]
[314233399,1708108232738,-2050.79,0.000325,2]
[314233400,1708108232748,-2401.0,0.000325,3]
[314233401,1708108232758,-362.19913522,0.00032851,2]
[314233402,1708108232767,-8000.0,0.000329,2]
[314233403,1708108232777,-650.0,0.00033,3]
[314233404,1708108232787,-2141.63003008,0.00033249,2]
[314233405,1708108232797,-176.17,0.00033309,10]
[314233406,1708108232815,-3345.62,0.00033403,2]
[314233407,1708108232824,-500.0,0.00034057,2]
[314233408,1708108232834,-1336.10691659,0.000341,6]
[314233409,1708108232844,-2141.63003008,0.000341,2]
[314233410,1708108232854,-184054.84217945,0.00034157,2]
[314233411,1708108233037,-10826.01699214,0.00034157,2]
[314233412,1708108233084,-352.60780125,0.00034157,2]
[314233413,1708108233612,-1168.93293316,0.00034157,2]
[314233414,1708108233624,-1095.58699136,0.00034157,2]
[314233415,1708108233635,-450.0,0.00034157,2]
[314233422,1708108237681,-557.04795219,0.00030326,2]
[314233423,1708108237690,-4854.72854354,0.00034157,2]
[314233424,1708108237702,-10321.0707499,0.00034157,2]
[314233425,1708108237713,-1128.06027362,0.00034157,2]
[314233426,1708108237915,-545.70325919,0.00034157,2]
[314233473,1708108240274,-480.57198543,0.00034157,2]
[314233474,1708108240434,-516.33225985,0.00034157,2]
[314233475,1708108240446,-1021.19323769,0.00034157,2]
[314233476,1708108240533,-12925.56685113,0.00034157,2]
[314233477,1708108240545,-389.23658744,0.00034157,2]
[314233478,1708108240569,-8680.0,0.00034157,2]
[314233530,1708108242559,-4996.67822451,0.00034157,2]
[314233531,1708108242570,-1192.87113034,0.00034157,2]
[314233532,1708108242579,-4831.62145164,0.000342,2]
[314233535,1708108242591,-2093.49587936,0.000342,2]
[314233536,1708108242602,-1074.882669,0.000342,2]
[314233537,1708108242613,-215.20229031,0.00034256,4]
[314233538,1708108242623,-586.22,0.00034257,2]
[314233539,1708108242632,-174.58,0.00034257,2]
[314233540,1708108242642,-200.0,0.00034257,2]
[314233541,1708108242651,-150.0,0.00034257,2]
[314233542,1708108242660,-250.0,0.00034257,2]
[314233543,1708108242669,-222.62,0.00034257,2]
[314233544,1708108242678,-8346.84,0.00034257,2]
[314233545,1708108242687,-200.0,0.00034257,2]
[314233546,1708108242697,-500.0,0.00034257,2]
[314233547,1708108242706,-993.25590562,0.00034257,2]
[314233548,1708108242735,-516.8145747,0.00034257,2]
[314233549,1708108242748,-1407.51126,0.00034257,2]
[314233550,1708108242773,-2509.38538502,0.00034257,2]
[314233551,1708108242784,-5199.31287466,0.00034257,2]
[314233552,1708108242794,-110.06970691,0.00034257,2]
[314233553,1708108242813,-6340.72684222,0.00034257,2]
[314233554,1708108242827,-1700.11848884,0.00034257,2]
[314233557,1708108244279,-348.76690872,0.00034156,4]
[314233558,1708108244288,-180.97308128,0.00034257,2]
[314233559,1708108244301,-470.02665923,0.00034257,2]
[314233560,1708108244312,-2503.0,0.00034257,2]
[314233561,1708108244333,-574.08241182,0.00034257,2]
[314233562,1708108244344,-594.743224,0.00034257,2]
[314233567,1708108245644,-810.7547,0.00033738,37]
[314233568,1708108245657,-9189.2453,0.00033738,37]
[314233569,1708108245666,-11426.2595857,0.00034257,2]
[314233570,1708108245675,-6940.3,0.00034257,2]
[314233571,1708108245685,-2372.79,0.00034257,2]
[314233572,1708108245694,-8800.22,0.00034257,2]
[314233573,1708108245703,-767.32,0.00034257,2]
[314233574,1708108245712,-2195.86,0.00034257,2]
[314233575,1708108245721,-154.1,0.00034295,2]
[314233576,1708108245730,-175.72,0.00034318,120]
[314233577,1708108245740,-890.15,0.00034334,2]
[314233578,1708108245749,-210.0,0.00034391,2]
[314233579,1708108245758,-210.0,0.00034391,3]
[314233580,1708108245767,-586.22,0.00034437,2]
[314233581,1708108245776,-1296.946474,0.000345,2]
[314233582,1708108245786,-822.23,0.00034514,2]
[314233583,1708108245795,-3600.618435,0.0003452,2]
[314233584,1708108245808,-22816.864071,0.0003452,2]
[314233585,1708108245817,-5362.39,0.00034521,2]
[314233586,1708108245827,-822.23,0.00034609,2]
[314233587,1708108245837,-586.22,0.00034618,2]
[314233588,1708108245847,-153.98,0.00034649,2]
[314233589,1708108245856,-822.23,0.00034703,2]
[314233590,1708108245865,-5400.927652,0.00034794,2]
[314233591,1708108245874,-34225.296106,0.00034794,2]
[314233592,1708108245884,-822.23,0.00034798,2]
[314233593,1708108245893,-586.22,0.00034798,2]
[314233594,1708108245902,-1945.419711,0.000348,2]
[314233595,1708108245911,-395.75793711,0.00034821,2]
[314233596,1708108245920,-3198.366,0.00034831,2]
[314233597,1708108245929,-2315.6252,0.00034831,2]
[314233598,1708108245938,-87657.23968338,0.00034831,2]
[314233599,1708108245961,-2650.39642541,0.00034831,2]
[314233601,1708108246001,-2133.57886684,0.00034831,2]
[314233603,1708108246014,-1999.72451456,0.00034831,2]
[314233604,1708108246026,-5559.06050981,0.00034831,2]
[314233605,1708108246035,-176.17,0.00034865,10]
[314233606,1708108246045,-491.27646204,0.00034878,2]
[314233608,1708108246057,-576.20766798,0.00034878,2]
[314233610,1708108246066,-1703.04250434,0.0003489,2]
[314233612,1708108246075,-822.23,0.00034893,2]
[314233613,1708108246084,-2735.47150256,0.000349,2]
[314233623,1708108256910,173.16,0.00027532,2]
[314233626,1708108744505,180.69,0.00025862,2]
[314233627,1708109086720,176.86,0.00016712,2]
[314233628,1708109253908,236.25268828,0.00023005,2]
[314233629,1708109345348,173.87,0.00023092,2]
[314233632,1708109431805,-856.962508,0.00024748,2]
[314233633,1708109431815,-159.81159687,0.00024873,2]
[314233634,1708109431825,-414.60283298,0.00024874,2]
[314233635,1708109431835,-2939.19855454,0.00024874,2]
[314233636,1708109431845,-1250.0,0.00025,3]
[314233637,1708109431854,-2103.37452,0.00025625,2]
[314233638,1708109431864,-1610.72483716,0.00025626,2]
[314233639,1708109431874,-150.0,0.00025626,2]
[314233640,1708109431883,-150.0,0.00025626,2]
[314233641,1708109431893,-517.85391459,0.00025633,2]
[314233642,1708109431902,-150.69443588,0.00025836,2]
[314233643,1708109431912,-9999.99,0.00025836,2]
[314233644,1708109431922,-517.85391455,0.00026275,2]
[314233645,1708109431932,-999.99,0.00026275,2]
[314233646,1708109431942,-1078.43,0.00026325,2]
[314233647,1708109431952,-517.85391455,0.00026917,2]
[314233648,1708109431961,-150.99,0.00026917,2]
[314233649,1708109431971,-1927.52,0.00026917,2]
[314233650,1708109431981,-3614.91142202,0.00026917,2]
[314233651,1708109432002,-5650.72779891,0.00026917,2]
[314233652,1708109432014,-2245.0,0.00026917,2]
[314233653,1708109432031,-1310.51141864,0.00026917,2]
[314233654,1708109432133,-3273.1474338,0.00026917,2]
[314233655,1708109432146,-1934.94999906,0.00026917,2]
[314233658,1708109432217,-362.1013399,0.00026917,2]
[314233659,1708109432235,-10879.73006568,0.00026917,2]
[314233660,1708109432257,-644.04736327,0.00026917,2]
[314233664,1708109437838,-1197.93357264,0.00026917,2]
[314233665,1708109437850,-1495.30193588,0.00026917,2]
[314233666,1708109437963,-19644.9576502,0.00026917,2]
[314233667,1708109437973,-9080.27,0.00026917,2]
[314233668,1708109437983,-173.87,0.00026941,2]
[314233669,1708109437993,-1300.0,0.00027,3]
[314233670,1708109438003,-517.85391455,0.00027558,2]
[314233671,1708109438013,-2218.5,0.00027718,2]
[314233672,1708109438022,-499.99,0.00027718,2]
[314233673,1708109438032,-150.99,0.00028,2]
[314233674,1708109438041,-200.65854675,0.00028,2]
[314233675,1708109438051,-2619.18,0.00028058,2]
[314233676,1708109438060,-200.0,0.00028069,2]
[314233677,1708109438069,-210.0,0.00028189,2]
[314233678,1708109438079,-210.0,0.00028189,2]
[314233679,1708109438088,-517.85391455,0.000282,2]
[314233680,1708109438098,-250.0,0.00028219,2]
[314233681,1708109438107,-2619.18,0.0002822,2]
[314233682,1708109438117,-37591.78,0.00028243,2]
[314233683,1708109438126,-692.6,0.00028255,2]
[314233684,1708109438136,-692.6,0.00028332,2]
[314233685,1708109438147,-2619.18,0.00028382,2]
[314233686,1708109438157,-692.6,0.0002841,2]
[314233687,1708109438166,-692.6,0.00028487,2]
[314233688,1708109438175,-2619.18,0.00028544,2]
[314233689,1708109438185,-692.6,0.00028564,2]
[314233690,1708109438194,-1078.43,0.00028589,2]
[314233692,1708109438203,-692.6,0.00028642,2]
[314233694,1708109438214,-10000.0,0.000287,2]
[314233695,1708109438224,-2619.18,0.00028706,2]
[314233697,1708109438235,-692.6,0.00028719,2]
[314233699,1708109438245,-692.6,0.00028797,2]
[314233701,1708109438254,-517.85391455,0.00028842,2]
[314233703,1708109438264,-250.0,0.00028865,2]
[314233705,1708109438273,-2619.18,0.00028868,2]
[314233707,1708109438283,-692.6,0.00028874,2]
[314233708,1708109438292,-692.6,0.00028952,2]
[314233709,1708109438302,-175.72,0.00028956,2]
[314233710,1708109438311,-1350.0,0.00029,3]
[314233711,1708109438320,-692.6,0.00029029,2]
[314233712,1708109438330,-2619.18,0.00029031,2]
[314233713,1708109438339,-1097.93,0.00029037,2]
[314233714,1708109438348,-4098.71,0.00029045,2]
[314233715,1708109438358,-150.0,0.0002908,2]
[314233716,1708109438367,-692.6,0.00029107,2]
[314233717,1708109438376,-613.85,0.00029109,2]
[314233718,1708109438386,-176.18,0.00029136,10]
[314233719,1708109438396,-692.6,0.00029184,2]
[314233720,1708109438405,-2619.18,0.00029193,2]
[314233721,1708109438416,-692.6,0.00029262,2]
[314233722,1708109438426,-692.6,0.00029339,2]
[314233723,1708109438435,-2619.18,0.00029355,2]
[314233724,1708109438444,-692.6,0.00029417,2]
[314233725,1708109438454,-517.85391455,0.00029484,2]
[314233726,1708109438463,-692.6,0.00029494,2]
[314233727,1708109438473,-385.55466859,0.000295,3]
[314233728,1708109438483,-2619.18,0.00029517,2]
[314233729,1708109438492,-692.6,0.00029572,2]
[314233730,1708109438502,-150.0,0.00029628,2]
[314233731,1708109438511,-692.6,0.00029649,2]
[314233732,1708109438520,-692.6,0.00029727,2]
[314233733,1708109438530,-500.0,0.00029922,2]
[314233734,1708109438540,-200.0,0.00029941,2]
[314233735,1708109438551,-922.27,0.00029948,2]
[314233736,1708109438561,-800.0,0.00029955,2]
[314233737,1708109438571,-1177.20626658,0.0003,4]
[314233738,1708109438581,-500.0,0.00030003,2]
[314233739,1708109438590,-1785.19,0.00030003,2]
[314233740,1708109438600,-2045.5,0.00030064,2]
[314233741,1708109438609,-2705.0,0.0003008,2]
[314233742,1708109438619,-517.85391455,0.00030126,2]
[314233743,1708109438629,-150.0,0.00030176,2]
[314233744,1708109438638,-5179.29674609,0.00030241,2]
[314233745,1708109438648,-1852.42,0.00030243,2]
[314233746,1708109438657,-1908.4,0.00030283,2]
[314233747,1708109438667,-452.79,0.00030323,3]
[314233748,1708109438676,-52081.80117679,0.00030333,2]
[314233749,1708109438686,-250.0,0.00030341,2]
[314233750,1708109438695,-1062.936,0.00030341,2]
[314233751,1708109438705,-23900.0,0.00030343,2]
[314233752,1708109438714,-500.0,0.00030343,2]
[314233753,1708109438724,-179.12,0.00030507,2]
[314233754,1708109438734,-613.85,0.00030565,2]
[314233755,1708109438743,-4098.71,0.00030689,2]
[314233756,1708109438753,-150.0,0.00030724,2]
[314233757,1708109438762,-517.85391455,0.00030767,2]
[314233758,1708109438772,-173.87,0.0003079,2]
[314233759,1708109438781,-1078.43,0.00030853,2]
[314233760,1708109438790,-154.0,0.00030984,2]
[314233761,1708109438800,-1400.0,0.00031,3]
[314233762,1708109438809,-293.0,0.00031007,2]
[314233763,1708109438818,-293.0,0.00031007,2]
[314233764,1708109438828,-174.59,0.00031028,2]
[314233765,1708109438838,-5179.29674608,0.00031171,2]
[314233766,1708109438847,-4378.02,0.00031198,2]
[314233767,1708109438857,-70886.2822,0.00031237,2]
[314233768,1708109438866,-150.0,0.00031272,2]
[314233769,1708109438876,-2050.79,0.00031337,2]
[314233770,1708109438885,-517.85391455,0.00031409,2]
[314233771,1708109438895,-169.68,0.00031644,2]
[314233772,1708109438904,-1450.68456523,0.00031678,5]
[314233773,1708109438914,-150.0,0.0003182,2]
[314233774,1708109438923,-299.5889,0.00031867,2]
[314233775,1708109438933,-176.18,0.00031991,10]
[314233776,1708109438942,-613.85,0.0003202,2]
[314233777,1708109438951,-517.85391455,0.00032051,2]
[314233778,1708109438961,-5179.29674608,0.000321,2]
[314233779,1708109438970,-845.45947899,0.00032196,4]
[314233780,1708109438980,-706.96333017,0.00032197,2]
[314233781,1708109438990,-626.8019089,0.00032197,4]
[314233782,1708109438999,-159425.06844904,0.00032198,2]
[314233783,1708109439009,-19381.0,0.000322,3]
[314233784,1708109439018,-2514.0,0.000322,3]
[314233785,1708109439028,-5850.61558406,0.0003223,4]
[314233786,1708109439038,-348.76690872,0.00032231,4]
[314233787,1708109439047,-2185.18,0.00032233,2]
[314233788,1708109439056,-200.0,0.00032309,2]
[314233789,1708109439066,-150.0,0.00032328,2]
[314233790,1708109439075,-4098.71,0.00032333,2]
[314233791,1708109439084,-150.0,0.00032368,2]
[314233792,1708109439094,-203.69,0.00032371,2]
[314233793,1708109439103,-2142.99,0.000324,2]
[314233794,1708109439113,-200.0,0.00032626,2]
[314233795,1708109439122,-154.0,0.00032628,2]
[314233796,1708109439133,-517.85391455,0.00032693,2]
[314233797,1708109439145,-8000.0,0.000329,2]
[314233798,1708109439154,-192.3607383,0.00032916,2]
[314233799,1708109439164,-154.1,0.0003295,2]
[314233800,1708109439173,-1450.0,0.00033,3]
[314233801,1708109439183,-1078.43,0.00033117,2]
[314233802,1708109439193,-517.85391455,0.00033334,2]
[314233803,1708109439202,-454.04500799,0.00033369,2]
[314233804,1708109439214,-2269.0,0.0003338,2]
[314233805,1708109439224,-613.85,0.00033476,2]
[314233806,1708109439234,-800.0,0.00033699,2]
[314233807,1708109439243,-5486.67628411,0.000338,2]
[314233808,1708109439253,-311.08241579,0.000338,2]
[314233809,1708109439263,-2537.6294078,0.00033888,2]
[314233810,1708109439272,-527.70170064,0.00033957,2]
[314233811,1708109439281,-500.0,0.00033957,2]
[314233812,1708109439291,-517.85391455,0.00033976,2]
[314233813,1708109439300,-4098.71,0.00033977,2]
[314233814,1708109439310,-203.69,0.00033989,2]
[314233815,1708109439319,-4028.44165203,0.00034,2]
[314233816,1708109439328,-177.9,0.00034023,2]
[314233817,1708109439338,-155.0,0.00034056,4]
[314233818,1708109439347,-681.60269048,0.00034057,3]
[314233819,1708109439356,-245000.0,0.00034057,2]
[314233820,1708109439366,-158.3062,0.00034057,2]
[314233821,1708109439375,-155.0,0.000341,2]
[314233822,1708109439385,-500.0,0.000341,2]
[314233823,1708109439395,-258.77,0.000341,7]
[314233824,1708109439405,-1153.06465788,0.00034157,2]
[314233825,1708109439415,-8000.0,0.000342,2]
[314233826,1708109439425,-258.77,0.00034237,7]
[314233827,1708109439434,-1513.81555941,0.00034255,2]
[314233828,1708109439444,-1834.27,0.00034257,2]
[314233829,1708109439453,-3949.18,0.00034257,2]
[314233830,1708109439463,-1067.54,0.00034257,2]
[314233831,1708109439473,-2000.0,0.00034257,2]
[314233832,1708109439490,-500.0,0.00034257,2]
[314233833,1708109439499,-200.0,0.00034257,2]
[314233835,1708109439753,-19.99796241,0.00034257,2]
[314233836,1708109439800,-1317.24203759,0.00034257,2]
[314233837,1708109439810,-1450.6845652,0.00034262,6]
[314233838,1708109439819,-154.0,0.00034272,2]
[314233839,1708109439829,-258.77,0.00034374,7]
[314233840,1708109439839,-733.524091,0.000345,2]
[314233841,1708109439848,-258.77,0.00034511,7]
[314233842,1708109439857,-1687.12445778,0.00034512,8]
[314233843,1708109439867,-2236.399879,0.0003452,2]
[314233844,1708109439876,-3626.979749,0.0003452,2]
[314233845,1708109439885,-4289.91,0.00034521,2]
[314233846,1708109439895,-1479.12,0.00034531,2]
[314233847,1708109439904,-150.0,0.00034548,10]
[314233848,1708109439914,-3000.0,0.0003455,2]
[314233849,1708109439923,-150.0,0.00034566,2]
[314233850,1708109439933,-517.85391455,0.00034618,2]
[314233851,1708109439942,-173.87,0.00034638,30]
[314233852,1708109439952,-515.18351411,0.00034648,2]
[314233853,1708109439962,-258.77,0.00034648,7]
[314233854,1708109439972,-150.0,0.00034683,2]
[314233855,1708109439981,-2416.16579638,0.00034768,7]
[314233856,1708109439991,-141.40257579,0.00034785,7]
[314233857,1708109440021,-117.36742421,0.00034785,7]
[314233858,1708109440031,-14368.57331239,0.0003479,2]
[314233859,1708109440055,-500.20105079,0.0003479,2]
[314233860,1708109440067,-236.29225136,0.0003479,2]
[314233861,1708109440076,-2203.68756284,0.0003479,2]
[314233862,1708109440091,-12901.37905167,0.0003479,2]
[314233863,1708109440100,-3354.599818,0.00034794,2]
[314233864,1708109440110,-5440.469624,0.00034794,2]
[314233865,1708109440120,-2092.1783677,0.00034799,2]
[314233875,1708109442938,-9181.71463319,0.00034799,2]
[314233876,1708109442948,-8305.31776808,0.00034799,2]
[314233877,1708109442969,-413.59633357,0.00034799,2]
[314233878,1708109442981,-2463.26023018,0.00034799,2]
[314233879,1708109443011,-91.71866906,0.00034799,2]
[314233880,1708109443021,-1100.286137,0.000348,2]
[314233881,1708109443030,-8645.7489687,0.00034865,2]
[314233882,1708109443042,-2180.55869615,0.00034865,2]
[314233883,1708109443054,-1150.49999953,0.00034865,2]
[314233884,1708109443066,-506.0082945,0.00034865,2]
[314233886,1708109443135,-1632.88808586,0.00034647,3]
[314233888,1708109443145,-9784.42183539,0.00034865,2]
[314233892,1708109443179,-0.00825324,0.00034865,2]
[314233895,1708109443206,-2347.06209764,0.00034865,2]
[314233898,1708109443221,-6204.92613585,0.00034865,2]
[314233900,1708109443231,-152.77213672,0.00034868,2]
[314233902,1708109443242,-177.9,0.00034874,2]
[314233904,1708109443251,-789.64101206,0.000349,2]
[314233906,1708109443263,-842.23467399,0.000349,2]
[314233910,1708109443288,-1231.70822008,0.000349,2]
[314233912,1708109443297,-2863.58390608,0.000349,2]